[Event "*** Titled Tuesday Blitz"]
[Site "Chess.com"]
[Date "2020.04.28"]
[Round "6"]
[White "swimmerchess"]
[Black "GMStefanova"]
[Result "1/2-1/2"]
[WhiteElo "2849"]
[BlackElo "2701"]
[TimeControl "180+1"]
[EndTime "11:07:36 PDT"]
[Termination "Game drawn - insufficient material"]

1. e4 {[%clk 0:03:00.9]} 1... e5 {[%clk 0:02:59.1]} 2. Nf3 {[%clk 0:03:00.8]}
2... Nc6 {[%clk 0:02:59.3]} 3. Bb5 {[%clk 0:03:01.5]} 3... a6 {[%clk 0:02:59.6]}
4. Ba4 {[%clk 0:03:01.8]} 4... g6 {[%clk 0:02:59.9]} 5. c3 {[%clk 0:03:01.1]}
5... Bg7 {[%clk 0:02:59.2]} 6. d4 {[%clk 0:03:01.6]} 6... exd4 {[%clk 0:02:59]}
7. cxd4 {[%clk 0:03:02.5]} 7... b5 {[%clk 0:02:59.1]} 8. Bb3 {[%clk 0:03:02.9]}
8... Nge7 {[%clk 0:02:58.5]} 9. d5 {[%clk 0:03:03.4]} 9... Na5 {[%clk 0:02:58]}
10. Bd2 {[%clk 0:03:04.1]} 10... Nxb3 {[%clk 0:02:57.9]} 11. Qxb3 {[%clk
0:03:05]} 11... O-O {[%clk 0:02:55.9]} 12. Bc3 {[%clk 0:03:04.3]} 12... d6
{[%clk 0:02:53.3]} 13. Bxg7 {[%clk 0:03:01.9]} 13... Kxg7 {[%clk 0:02:53.1]} 14.
O-O {[%clk 0:03:02.5]} 14... f6 {[%clk 0:02:43]} 15. Nc3 {[%clk 0:03:00.7]}
15... Bd7 {[%clk 0:02:41]} 16. Rad1 {[%clk 0:02:53.8]} 16... g5 {[%clk
0:02:40.7]} 17. Rfe1 {[%clk 0:02:49.7]} 17... Ng6 {[%clk 0:02:40.5]} 18. Ne2
{[%clk 0:02:44]} 18... h5 {[%clk 0:02:37.6]} 19. Rc1 {[%clk 0:02:40.2]} 19... h4
{[%clk 0:02:36.3]} 20. Qc3 {[%clk 0:02:29.4]} 20... Rc8 {[%clk 0:02:35.8]} 21.
Nxg5 {[%clk 0:02:29.1]} 21... Ne5 {[%clk 0:02:31.7]} 22. f4 {[%clk 0:02:24]}
22... fxg5 {[%clk 0:02:19.9]} 23. fxe5 {[%clk 0:02:23.7]} 23... dxe5 {[%clk
0:02:20.2]} 24. Qxe5+ {[%clk 0:02:23.3]} 24... Qf6 {[%clk 0:02:20.4]} 25. Qxf6+
{[%clk 0:02:21.6]} 25... Kxf6 {[%clk 0:02:16.3]} 26. Nd4 {[%clk 0:02:21.6]}
26... Ke5 {[%clk 0:02:09]} 27. Nc6+ {[%clk 0:02:09.9]} 27... Bxc6 {[%clk
0:02:01.9]} 28. Rxc6 {[%clk 0:02:10.8]} 28... Rf4 {[%clk 0:01:57.7]} 29. d6
{[%clk 0:01:48.1]} 29... Rf6 {[%clk 0:01:51.7]} 30. d7 {[%clk 0:01:31.7]} 30...
Rd8 {[%clk 0:01:50.7]} 31. Rxc7 {[%clk 0:01:28.4]} 31... Rd6 {[%clk 0:01:50]}
32. Rc5+ {[%clk 0:01:24.6]} 32... Kd4 {[%clk 0:01:25.2]} 33. Rxg5 {[%clk
0:01:21.9]} 33... R6xd7 {[%clk 0:01:23.9]} 34. e5 {[%clk 0:01:18.3]} 34... Kd3
{[%clk 0:01:20.7]} 35. e6 {[%clk 0:01:16.1]} 35... Kd2 {[%clk 0:01:09.3]} 36.
exd7 {[%clk 0:01:13.1]} 36... Kxe1 {[%clk 0:01:08.9]} 37. Rd5 {[%clk 0:01:13.5]}
37... Ke2 {[%clk 0:01:07.1]} 38. Re5+ {[%clk 0:00:58.1]} 38... Kd3 {[%clk
0:01:05.1]} 39. Re7 {[%clk 0:00:58.7]} 39... Kc2 {[%clk 0:01:01.9]} 40. b4
{[%clk 0:00:36]} 40... Kb2 {[%clk 0:00:58]} 41. g3 {[%clk 0:00:34.2]} 41... hxg3
{[%clk 0:00:56.3]} 42. h4 {[%clk 0:00:28.9]} 42... Kxa2 {[%clk 0:00:52]} 43. h5
{[%clk 0:00:29.2]} 43... a5 {[%clk 0:00:46.5]} 44. bxa5 {[%clk 0:00:15.5]} 44...
b4 {[%clk 0:00:46.4]} 45. a6 {[%clk 0:00:10.4]} 45... b3 {[%clk 0:00:45.7]} 46.
a7 {[%clk 0:00:10.5]} 46... b2 {[%clk 0:00:43.9]} 47. Re1 {[%clk 0:00:11.1]}
47... b1=Q {[%clk 0:00:35.4]} 48. Rxb1 {[%clk 0:00:11.6]} 48... Kxb1 {[%clk
0:00:35.2]} 49. Kg2 {[%clk 0:00:12.5]} 49... Kc2 {[%clk 0:00:33.3]} 50. Kxg3
{[%clk 0:00:13.4]} 50... Kd3 {[%clk 0:00:33.2]} 51. Kf4 {[%clk 0:00:13.7]} 51...
Kd4 {[%clk 0:00:32.9]} 52. h6 {[%clk 0:00:11.9]} 52... Kd5 {[%clk 0:00:32.9]}
53. Kf5 {[%clk 0:00:12.8]} 53... Kd6 {[%clk 0:00:32.7]} 54. h7 {[%clk
0:00:09.5]} 54... Kxd7 {[%clk 0:00:31.8]} 55. Kg6 {[%clk 0:00:08.1]} 55... Kc7
{[%clk 0:00:28.1]} 56. Kg7 {[%clk 0:00:08.3]} 56... Kb7 {[%clk 0:00:27.4]} 57.
h8=Q {[%clk 0:00:09.2]} 57... Rxh8 {[%clk 0:00:27.1]} 58. Kxh8 {[%clk
0:00:10.1]} 58... Kxa7 {[%clk 0:00:27.2]} 1/2-1/2

[Event "*** Titled Tuesday Blitz"]
[Site "Chess.com"]
[Date "2020.04.28"]
[Round "6"]
[White "ChrisTool2"]
[Black "bmt011"]
[Result "0-1"]
[WhiteElo "2366"]
[BlackElo "2060"]
[TimeControl "180+1"]
[EndTime "11:07:36 PDT"]
[Termination "bmt011 won on time"]

1. d4 {[%clk 0:03:00.9]} 1... Nf6 {[%clk 0:02:59.3]} 2. c4 {[%clk 0:03:00.5]}
2... e6 {[%clk 0:02:59.7]} 3. Nf3 {[%clk 0:02:59.5]} 3... Bb4+ {[%clk
0:02:59.9]} 4. Nbd2 {[%clk 0:02:58.4]} 4... O-O {[%clk 0:02:42]} 5. Qc2 {[%clk
0:02:57.3]} 5... b6 {[%clk 0:02:12.6]} 6. e4 {[%clk 0:02:53.9]} 6... Bb7 {[%clk
0:02:12.6]} 7. e5 {[%clk 0:02:48.8]} 7... Ne4 {[%clk 0:02:10.3]} 8. Bd3 {[%clk
0:02:43.4]} 8... f5 {[%clk 0:02:10.2]} 9. exf6 {[%clk 0:02:36.4]} 9... Nxf6
{[%clk 0:02:08.6]} 10. O-O {[%clk 0:02:15.4]} 10... Qe8 {[%clk 0:01:26.5]} 11.
Ne4 {[%clk 0:02:04.2]} 11... Qh5 {[%clk 0:01:25.3]} 12. Ng3 {[%clk 0:01:57.3]}
12... Qe8 {[%clk 0:01:09.1]} 13. Ng5 {[%clk 0:01:52.2]} 13... h6 {[%clk
0:00:58.8]} 14. Bg6 {[%clk 0:01:16.3]} 14... Qe7 {[%clk 0:00:51.4]} 15. N5e4
{[%clk 0:01:07.5]} 15... Nc6 {[%clk 0:00:48.1]} 16. Be3 {[%clk 0:00:53.5]} 16...
Bd6 {[%clk 0:00:47.8]} 17. Rfe1 {[%clk 0:00:38.4]} 17... Ng4 {[%clk 0:00:23.2]}
18. Rad1 {[%clk 0:00:21.1]} 18... Nxe3 {[%clk 0:00:19.9]} 19. fxe3 {[%clk
0:00:19.4]} 19... Bxg3 {[%clk 0:00:20.2]} 20. Nxg3 {[%clk 0:00:19.6]} 20... Nb4
{[%clk 0:00:19.3]} 21. Qb1 {[%clk 0:00:17.5]} 21... Qf6 {[%clk 0:00:18.9]} 22.
Rf1 {[%clk 0:00:15.4]} 22... Qg5 {[%clk 0:00:19]} 23. Bh7+ {[%clk 0:00:09.4]}
23... Kh8 {[%clk 0:00:18.7]} 24. Rde1 {[%clk 0:00:07.6]} 24... d5 {[%clk
0:00:15]} 25. cxd5 {[%clk 0:00:06.3]} 25... Bxd5 {[%clk 0:00:13.5]} 26. Be4
{[%clk 0:00:06.1]} 26... Bc4 {[%clk 0:00:13.6]} 27. Rxf8+ {[%clk 0:00:05.2]}
27... Rxf8 {[%clk 0:00:13.1]} 28. b3 {[%clk 0:00:05.7]} 28... Bd5 {[%clk
0:00:12.2]} 29. Bxd5 {[%clk 0:00:05]} 29... Nxd5 {[%clk 0:00:11.8]} 30. Ne4
{[%clk 0:00:05]} 30... Qf5 {[%clk 0:00:11]} 31. Qd3 {[%clk 0:00:04.1]} 31... Nb4
{[%clk 0:00:10.5]} 32. Qb1 {[%clk 0:00:03.5]} 32... Nxa2 {[%clk 0:00:10.5]} 33.
Ng3 {[%clk 0:00:02.4]} 33... Qxb1 {[%clk 0:00:10.2]} 34. Rxb1 {[%clk 0:00:03.3]}
34... Nc3 {[%clk 0:00:09.4]} 35. Rc1 {[%clk 0:00:03.9]} 35... Nd5 {[%clk
0:00:08.3]} 36. Rc6 {[%clk 0:00:04.3]} 36... Rc8 {[%clk 0:00:05.3]} 37. e4
{[%clk 0:00:03.9]} 37... Nb4 {[%clk 0:00:04.3]} 38. Rxe6 {[%clk 0:00:03.3]}
38... a5 {[%clk 0:00:05]} 39. Re7 {[%clk 0:00:02.6]} 39... b5 {[%clk 0:00:05.4]}
40. Nf5 {[%clk 0:00:02.6]} 40... a4 {[%clk 0:00:06]} 41. bxa4 {[%clk 0:00:03.2]}
41... bxa4 {[%clk 0:00:04.8]} 42. Nxg7 {[%clk 0:00:03.8]} 42... a3 {[%clk
0:00:05.5]} 43. Nh5 {[%clk 0:00:04.5]} 43... a2 {[%clk 0:00:05.4]} 44. Nf6
{[%clk 0:00:04.5]} 44... a1=Q+ {[%clk 0:00:05.1]} 45. Kf2 {[%clk 0:00:05.1]}
45... Qxd4+ {[%clk 0:00:05.3]} 46. Kf3 {[%clk 0:00:05.2]} 46... Qxf6+ {[%clk
0:00:05.9]} 47. Ke3 {[%clk 0:00:02.3]} 47... Qxe7 {[%clk 0:00:06.8]} 0-1

[Event "*** Titled Tuesday Blitz"]
[Site "Chess.com"]
[Date "2020.04.28"]
[Round "6"]
[White "InitiatingASC"]
[Black "Pavalamalli"]
[Result "0-1"]
[WhiteElo "2399"]
[BlackElo "2251"]
[TimeControl "180+1"]
[EndTime "11:07:36 PDT"]
[Termination "Pavalamalli won by resignation"]

1. d4 {[%clk 0:03:00.9]} 1... Nf6 {[%clk 0:02:58.2]} 2. c4 {[%clk 0:03:00.6]}
2... e6 {[%clk 0:02:58.1]} 3. Nc3 {[%clk 0:03:00.6]} 3... Bb4 {[%clk 0:02:57.1]}
4. e3 {[%clk 0:03:00.9]} 4... O-O {[%clk 0:02:56.3]} 5. Bd3 {[%clk 0:03:00.9]}
5... d5 {[%clk 0:02:55.3]} 6. Ne2 {[%clk 0:03:00.6]} 6... Re8 {[%clk 0:02:53.7]}
7. O-O {[%clk 0:03:00.5]} 7... b6 {[%clk 0:02:50.9]} 8. cxd5 {[%clk 0:02:57.5]}
8... exd5 {[%clk 0:02:50.1]} 9. a3 {[%clk 0:02:57.3]} 9... Bf8 {[%clk
0:02:49.2]} 10. b4 {[%clk 0:02:56.9]} 10... c5 {[%clk 0:02:41.3]} 11. bxc5
{[%clk 0:02:55.2]} 11... bxc5 {[%clk 0:02:41.2]} 12. dxc5 {[%clk 0:02:55.4]}
12... Bxc5 {[%clk 0:02:40]} 13. Bb2 {[%clk 0:02:54.8]} 13... Ba6 {[%clk
0:02:37.8]} 14. Nb5 {[%clk 0:02:44.2]} 14... Nbd7 {[%clk 0:02:26.4]} 15. Nbd4
{[%clk 0:02:30.5]} 15... Bxd3 {[%clk 0:02:22.8]} 16. Qxd3 {[%clk 0:02:31.4]}
16... Ne5 {[%clk 0:02:14.1]} 17. Qf5 {[%clk 0:02:22.9]} 17... Rb8 {[%clk
0:02:00.7]} 18. Bc3 {[%clk 0:02:10.6]} 18... Qd7 {[%clk 0:01:55.1]} 19. Rfd1
{[%clk 0:01:55.2]} 19... Qxf5 {[%clk 0:01:48]} 20. Nxf5 {[%clk 0:01:54.4]} 20...
Rb3 {[%clk 0:01:21.1]} 21. Nfd4 {[%clk 0:01:48.3]} 21... Rxa3 {[%clk 0:01:16.9]}
22. Rxa3 {[%clk 0:01:41.3]} 22... Bxa3 {[%clk 0:01:16.7]} 23. Nb5 {[%clk
0:01:41.9]} 23... Bc5 {[%clk 0:01:15.1]} 24. Nc7 {[%clk 0:01:39.2]} 24... Re7
{[%clk 0:01:03]} 25. Nxd5 {[%clk 0:01:36.5]} 25... Nxd5 {[%clk 0:01:02.1]} 26.
Rxd5 {[%clk 0:01:35.6]} 26... Nd7 {[%clk 0:01:01.8]} 27. Nd4 {[%clk 0:01:28.1]}
27... Bxd4 {[%clk 0:00:59.1]} 28. Bxd4 {[%clk 0:01:27.7]} 28... a6 {[%clk
0:00:38]} 29. Bc5 {[%clk 0:01:21.2]} 29... Nf6 {[%clk 0:00:33.4]} 30. Rd6 {[%clk
0:01:10.9]} 30... Rd7 {[%clk 0:00:31.8]} 31. Rxd7 {[%clk 0:01:04]} 31... Nxd7
{[%clk 0:00:31.3]} 32. Ba3 {[%clk 0:01:04.9]} 32... f5 {[%clk 0:00:30.9]} 33. e4
{[%clk 0:01:05.5]} 33... fxe4 {[%clk 0:00:30.6]} 34. Kf1 {[%clk 0:01:05.7]}
34... Kf7 {[%clk 0:00:29.9]} 35. Ke2 {[%clk 0:01:06.3]} 35... Ke6 {[%clk
0:00:30.3]} 36. Ke3 {[%clk 0:01:06.9]} 36... Kd5 {[%clk 0:00:30.7]} 37. h4
{[%clk 0:01:05.9]} 37... Ne5 {[%clk 0:00:29.6]} 38. Bf8 {[%clk 0:01:02.8]} 38...
g6 {[%clk 0:00:28.9]} 39. f3 {[%clk 0:01:02.3]} 39... exf3 {[%clk 0:00:25.6]}
40. gxf3 {[%clk 0:01:02.8]} 40... a5 {[%clk 0:00:24.5]} 41. Kf4 {[%clk
0:01:02.5]} 41... a4 {[%clk 0:00:22.5]} 42. Bg7 {[%clk 0:01:02.6]} 42... Nc4
{[%clk 0:00:20.6]} 43. Kg5 {[%clk 0:01:02]} 43... a3 {[%clk 0:00:20.5]} 44. Kh6
{[%clk 0:00:58.6]} 44... a2 {[%clk 0:00:20.1]} 45. Ba1 {[%clk 0:00:53]} 45...
Ne5 {[%clk 0:00:20.1]} 46. f4 {[%clk 0:00:51.3]} 46... Nf3 {[%clk 0:00:17.6]}
47. h5 {[%clk 0:00:43.6]} 47... gxh5 {[%clk 0:00:16.9]} 48. Kxh5 {[%clk
0:00:43.7]} 48... Ke4 {[%clk 0:00:16.2]} 49. Kh6 {[%clk 0:00:41.2]} 49... Kxf4
{[%clk 0:00:16.1]} 50. Kxh7 {[%clk 0:00:42.1]} 50... Ke4 {[%clk 0:00:16.4]} 51.
Kg6 {[%clk 0:00:42.1]} 51... Kd3 {[%clk 0:00:16.6]} 52. Kf5 {[%clk 0:00:42.2]}
52... Kc2 {[%clk 0:00:16.9]} 53. Ke4 {[%clk 0:00:41.3]} 53... Nd2+ {[%clk
0:00:16.4]} 54. Ke3 {[%clk 0:00:41.4]} 54... Nc4+ {[%clk 0:00:14.5]} 55. Kd4
{[%clk 0:00:38.5]} 55... Nb2 {[%clk 0:00:14.2]} 56. Ke3 {[%clk 0:00:35.6]} 56...
Kb1 {[%clk 0:00:14.4]} 0-1

[Event "*** Titled Tuesday Blitz"]
[Site "Chess.com"]
[Date "2020.04.28"]
[Round "6"]
[White "JonahWillow"]
[Black "Marty435"]
[Result "1-0"]
[WhiteElo "2696"]
[BlackElo "2541"]
[TimeControl "180+1"]
[EndTime "11:07:38 PDT"]
[Termination "JonahWillow won by checkmate"]

1. e4 {[%clk 0:03:00.9]} 1... c6 {[%clk 0:02:58.2]} 2. d4 {[%clk 0:03:01.1]}
2... d5 {[%clk 0:02:58.5]} 3. Nc3 {[%clk 0:03:02]} 3... dxe4 {[%clk 0:02:58.5]}
4. Nxe4 {[%clk 0:03:02.9]} 4... Bf5 {[%clk 0:02:58.6]} 5. Nc5 {[%clk 0:03:03.3]}
5... Nd7 {[%clk 0:02:57.8]} 6. Nxb7 {[%clk 0:03:02.7]} 6... Qb6 {[%clk 0:02:58]}
7. Nc5 {[%clk 0:03:02.6]} 7... Nxc5 {[%clk 0:02:55.2]} 8. dxc5 {[%clk
0:03:03.5]} 8... Qxc5 {[%clk 0:02:55.3]} 9. Bd3 {[%clk 0:02:54.8]} 9... Nf6
{[%clk 0:02:46.6]} 10. Nf3 {[%clk 0:02:52.1]} 10... e6 {[%clk 0:02:43.2]} 11.
O-O {[%clk 0:02:42.8]} 11... Be7 {[%clk 0:02:34.2]} 12. Re1 {[%clk 0:02:40]}
12... Rd8 {[%clk 0:02:30]} 13. Qe2 {[%clk 0:02:37.8]} 13... Bxd3 {[%clk
0:02:28.2]} 14. cxd3 {[%clk 0:02:38.7]} 14... O-O {[%clk 0:02:27.7]} 15. Be3
{[%clk 0:02:37.2]} 15... Qa5 {[%clk 0:02:13.6]} 16. Rec1 {[%clk 0:02:23.6]}
16... Qa6 {[%clk 0:02:09.8]} 17. Ne5 {[%clk 0:02:15.3]} 17... Rc8 {[%clk
0:01:59]} 18. Bc5 {[%clk 0:01:54.8]} 18... Bxc5 {[%clk 0:01:56.3]} 19. Rxc5
{[%clk 0:01:55.7]} 19... Rfd8 {[%clk 0:01:56.3]} 20. a3 {[%clk 0:01:45.6]} 20...
Rd5 {[%clk 0:01:53.1]} 21. Rac1 {[%clk 0:01:44.6]} 21... Rxc5 {[%clk 0:01:50.7]}
22. Rxc5 {[%clk 0:01:45.5]} 22... Nd5 {[%clk 0:01:42.8]} 23. Qc2 {[%clk
0:01:43.3]} 23... Ne7 {[%clk 0:01:38.1]} 24. Qc3 {[%clk 0:01:31.8]} 24... Qb7
{[%clk 0:01:33]} 25. b4 {[%clk 0:01:17.5]} 25... Nd5 {[%clk 0:01:26.3]} 26. Qc2
{[%clk 0:01:14.3]} 26... Ne7 {[%clk 0:01:22.6]} 27. Nc4 {[%clk 0:01:10.4]} 27...
Qd7 {[%clk 0:01:19.2]} 28. Na5 {[%clk 0:01:07]} 28... h6 {[%clk 0:01:14.4]} 29.
h3 {[%clk 0:01:06.9]} 29... Qd6 {[%clk 0:00:52.2]} 30. Qc3 {[%clk 0:01:03.2]}
30... Qd7 {[%clk 0:00:41.5]} 31. Qc4 {[%clk 0:01:02.1]} 31... Rd8 {[%clk
0:00:39.7]} 32. Nxc6 {[%clk 0:00:52.1]} 32... Nxc6 {[%clk 0:00:39.3]} 33. Rxc6
{[%clk 0:00:53]} 33... Qxd3 {[%clk 0:00:39.4]} 34. Qxd3 {[%clk 0:00:51]} 34...
Rxd3 {[%clk 0:00:40.3]} 35. Ra6 {[%clk 0:00:51.7]} 35... Rd7 {[%clk 0:00:37.8]}
36. f4 {[%clk 0:00:43.9]} 36... g6 {[%clk 0:00:37.5]} 37. Kf2 {[%clk 0:00:42.3]}
37... Kg7 {[%clk 0:00:37.8]} 38. Ke3 {[%clk 0:00:40]} 38... Kf6 {[%clk
0:00:38.3]} 39. b5 {[%clk 0:00:37.8]} 39... h5 {[%clk 0:00:38.1]} 40. a4 {[%clk
0:00:37.1]} 40... Kf5 {[%clk 0:00:34.7]} 41. Rc6 {[%clk 0:00:36.6]} 41... Kf6
{[%clk 0:00:32.6]} 42. Ke4 {[%clk 0:00:32.2]} 42... Rd1 {[%clk 0:00:31.3]} 43.
Rc7 {[%clk 0:00:31.3]} 43... Re1+ {[%clk 0:00:28.2]} 44. Kf3 {[%clk 0:00:30.5]}
44... Rf1+ {[%clk 0:00:20.9]} 45. Ke3 {[%clk 0:00:29.6]} 45... Re1+ {[%clk
0:00:20.3]} 46. Kd3 {[%clk 0:00:27.6]} 46... Rd1+ {[%clk 0:00:14.1]} 47. Ke2
{[%clk 0:00:27.9]} 47... Rd4 {[%clk 0:00:11.5]} 48. Rxa7 {[%clk 0:00:28.3]}
48... Rxf4 {[%clk 0:00:11.5]} 49. b6 {[%clk 0:00:28.5]} 49... Rb4 {[%clk
0:00:09.9]} 50. b7 {[%clk 0:00:28.9]} 50... g5 {[%clk 0:00:07.5]} 51. a5 {[%clk
0:00:28.7]} 51... g4 {[%clk 0:00:07.4]} 52. hxg4 {[%clk 0:00:27.7]} 52... hxg4
{[%clk 0:00:08.3]} 53. a6 {[%clk 0:00:27.8]} 53... Kg5 {[%clk 0:00:08]} 54. Ra8
{[%clk 0:00:27.7]} 54... Kf4 {[%clk 0:00:06.4]} 55. b8=Q+ {[%clk 0:00:27.6]}
55... Rxb8 {[%clk 0:00:06.5]} 56. Rxb8 {[%clk 0:00:28.5]} 56... Kg3 {[%clk
0:00:06.9]} 57. Rg8 {[%clk 0:00:27.4]} 57... f5 {[%clk 0:00:06.1]} 58. a7 {[%clk
0:00:27.3]} 58... Kxg2 {[%clk 0:00:06.5]} 59. a8=Q+ {[%clk 0:00:28.2]} 59... Kg1
{[%clk 0:00:05.2]} 60. Rh8 {[%clk 0:00:27.6]} 60... g3 {[%clk 0:00:04.5]} 61.
Rh1# {[%clk 0:00:27.9]} 1-0

[Event "*** Titled Tuesday Blitz"]
[Site "Chess.com"]
[Date "2020.04.28"]
[Round "6"]
[White "RaphaeI"]
[Black "MilanovicDan"]
[Result "1-0"]
[WhiteElo "2636"]
[BlackElo "2471"]
[TimeControl "180+1"]
[EndTime "11:07:38 PDT"]
[Termination "RaphaeI won on time"]

1. c4 {[%clk 0:03:00.9]} 1... c5 {[%clk 0:02:54.7]} 2. Nf3 {[%clk 0:03:01]} 2...
b6 {[%clk 0:02:54.6]} 3. e4 {[%clk 0:02:59.4]} 3... Bb7 {[%clk 0:02:54.2]} 4.
Nc3 {[%clk 0:02:59.7]} 4... d6 {[%clk 0:02:52.5]} 5. d4 {[%clk 0:02:57.5]} 5...
cxd4 {[%clk 0:02:52.6]} 6. Nxd4 {[%clk 0:02:58.4]} 6... Nf6 {[%clk 0:02:52.5]}
7. Qe2 {[%clk 0:02:57]} 7... g6 {[%clk 0:02:46.4]} 8. g3 {[%clk 0:02:47.4]} 8...
Bg7 {[%clk 0:02:46.5]} 9. Bg2 {[%clk 0:02:47.8]} 9... O-O {[%clk 0:02:41.1]} 10.
O-O {[%clk 0:02:46.2]} 10... Nbd7 {[%clk 0:02:37.7]} 11. Rd1 {[%clk 0:02:38.9]}
11... Rb8 {[%clk 0:02:27.5]} 12. Bg5 {[%clk 0:02:32.6]} 12... h6 {[%clk
0:02:24.1]} 13. Be3 {[%clk 0:02:32.7]} 13... a6 {[%clk 0:02:23.6]} 14. Rac1
{[%clk 0:02:32.4]} 14... Kh7 {[%clk 0:02:14.4]} 15. b4 {[%clk 0:02:20.9]} 15...
Ba8 {[%clk 0:01:41.8]} 16. h3 {[%clk 0:02:03.8]} 16... Rc8 {[%clk 0:01:38.4]}
17. Kh2 {[%clk 0:01:51.8]} 17... Re8 {[%clk 0:01:26.3]} 18. Nd5 {[%clk 0:01:46]}
18... e6 {[%clk 0:01:20.7]} 19. Nc3 {[%clk 0:01:46.2]} 19... Qc7 {[%clk
0:01:20.2]} 20. Ndb5 {[%clk 0:01:06.2]} 20... axb5 {[%clk 0:01:17.1]} 21. Nxb5
{[%clk 0:01:07.1]} 21... Qb8 {[%clk 0:01:14.7]} 22. Nxd6 {[%clk 0:01:07.3]}
22... Rf8 {[%clk 0:00:55.6]} 23. Nxc8 {[%clk 0:01:06.3]} 23... Rxc8 {[%clk
0:00:55.1]} 24. c5 {[%clk 0:00:52.9]} 24... bxc5 {[%clk 0:00:50.5]} 25. bxc5
{[%clk 0:00:53.8]} 25... Bc6 {[%clk 0:00:47.4]} 26. Bf4 {[%clk 0:00:46.3]} 26...
Qa8 {[%clk 0:00:45.9]} 27. f3 {[%clk 0:00:36.2]} 27... e5 {[%clk 0:00:38]} 28.
Be3 {[%clk 0:00:36.3]} 28... Nf8 {[%clk 0:00:38.2]} 29. Rb1 {[%clk 0:00:27.7]}
29... Ne6 {[%clk 0:00:37.6]} 30. Rb6 {[%clk 0:00:27.8]} 30... Bf8 {[%clk
0:00:36.8]} 31. Qb2 {[%clk 0:00:25.9]} 31... Nd7 {[%clk 0:00:27.3]} 32. Rb4
{[%clk 0:00:15.9]} 32... Nexc5 {[%clk 0:00:25.4]} 33. Rc4 {[%clk 0:00:12.8]}
33... Ne6 {[%clk 0:00:18.6]} 34. Rdc1 {[%clk 0:00:10.5]} 34... Bb7 {[%clk
0:00:17.6]} 35. Rxc8 {[%clk 0:00:10]} 35... Bxc8 {[%clk 0:00:17.9]} 36. Qb5
{[%clk 0:00:10.3]} 36... Bg7 {[%clk 0:00:15.8]} 37. a4 {[%clk 0:00:09.2]} 37...
Ba6 {[%clk 0:00:14.8]} 38. Qxd7 {[%clk 0:00:08.5]} 38... Kg8 {[%clk 0:00:12.6]}
39. Qd6 {[%clk 0:00:07.1]} 39... Nd4 {[%clk 0:00:11.4]} 40. Rb1 {[%clk
0:00:06.9]} 40... Kh7 {[%clk 0:00:09.5]} 41. Rb8 {[%clk 0:00:06.6]} 41... Qa7
{[%clk 0:00:09.5]} 42. Qb6 {[%clk 0:00:05.1]} 42... Qxb6 {[%clk 0:00:06.3]} 43.
Rxb6 {[%clk 0:00:06]} 43... Be2 {[%clk 0:00:05.4]} 44. a5 {[%clk 0:00:05]} 44...
Nxf3+ {[%clk 0:00:04.7]} 45. Kh1 {[%clk 0:00:04.6]} 45... Nd4 {[%clk 0:00:02.8]}
46. a6 {[%clk 0:00:04.7]} 1-0

[Event "*** Titled Tuesday Blitz"]
[Site "Chess.com"]
[Date "2020.04.28"]
[Round "6"]
[White "Nikolakis2014"]
[Black "GMHess"]
[Result "0-1"]
[WhiteElo "2713"]
[BlackElo "2888"]
[TimeControl "180+1"]
[EndTime "11:07:39 PDT"]
[Termination "GMHess won by resignation"]

1. Nf3 {[%clk 0:03:00.9]} 1... g6 {[%clk 0:02:58.4]} 2. c4 {[%clk 0:03:00.5]}
2... Bg7 {[%clk 0:02:58.8]} 3. d4 {[%clk 0:03:00.6]} 3... f5 {[%clk 0:02:55.7]}
4. Nc3 {[%clk 0:02:59.1]} 4... c5 {[%clk 0:02:56]} 5. g3 {[%clk 0:02:58.5]} 5...
cxd4 {[%clk 0:02:55.8]} 6. Nxd4 {[%clk 0:02:58.3]} 6... Nc6 {[%clk 0:02:56.5]}
7. Nf3 {[%clk 0:02:52]} 7... Bxc3+ {[%clk 0:02:49.9]} 8. bxc3 {[%clk 0:02:51.5]}
8... Qa5 {[%clk 0:02:47.7]} 9. Bg2 {[%clk 0:02:48.5]} 9... Nf6 {[%clk
0:02:31.4]} 10. O-O {[%clk 0:02:47.7]} 10... O-O {[%clk 0:02:31.1]} 11. Bh6
{[%clk 0:02:33.6]} 11... Re8 {[%clk 0:02:24.6]} 12. Nd4 {[%clk 0:02:31.1]} 12...
Ne5 {[%clk 0:01:44.2]} 13. Qb3 {[%clk 0:01:57.7]} 13... Qc5 {[%clk 0:01:24.5]}
14. Nb5 {[%clk 0:01:51.8]} 14... Nfg4 {[%clk 0:00:59.4]} 15. Bf4 {[%clk
0:01:48.8]} 15... a6 {[%clk 0:00:51.6]} 16. h3 {[%clk 0:01:47.5]} 16... Nxf2
{[%clk 0:00:37.1]} 17. Rxf2 {[%clk 0:01:26.7]} 17... axb5 {[%clk 0:00:37]} 18.
cxb5+ {[%clk 0:01:19.4]} 18... e6 {[%clk 0:00:21.6]} 19. Qb4 {[%clk 0:01:10.2]}
19... Qxb4 {[%clk 0:00:20]} 20. cxb4 {[%clk 0:01:09.9]} 20... Nc4 {[%clk
0:00:15.3]} 21. e4 {[%clk 0:01:09.7]} 21... fxe4 {[%clk 0:00:12.7]} 22. Bxe4
{[%clk 0:01:09.1]} 22... d5 {[%clk 0:00:13.3]} 23. Bg2 {[%clk 0:01:09]} 23...
Ra3 {[%clk 0:00:10.9]} 24. Raf1 {[%clk 0:01:03.7]} 24... h5 {[%clk 0:00:08.4]}
25. Kh2 {[%clk 0:00:58.1]} 25... Bd7 {[%clk 0:00:07.8]} 26. Bh6 {[%clk
0:00:56.9]} 26... Bxb5 {[%clk 0:00:06.5]} 27. Rf7 {[%clk 0:00:52.3]} 27... Ne5
{[%clk 0:00:02.6]} 28. Rg7+ {[%clk 0:00:20.7]} 28... Kh8 {[%clk 0:00:03.1]} 29.
Re1 {[%clk 0:00:20.9]} 29... Nd3 {[%clk 0:00:03.1]} 30. Re3 {[%clk 0:00:19.5]}
30... Rxa2 {[%clk 0:00:03]} 31. Rxg6 {[%clk 0:00:18.3]} 31... Kh7 {[%clk
0:00:02.8]} 32. Rf6 {[%clk 0:00:17.8]} 32... d4 {[%clk 0:00:02.6]} 33. Ref3
{[%clk 0:00:15.4]} 33... Bc6 {[%clk 0:00:02.7]} 34. Kh1 {[%clk 0:00:06.4]} 34...
Rxg2 {[%clk 0:00:02.3]} 35. Rf7+ {[%clk 0:00:05.4]} 35... Kg8 {[%clk 0:00:01.5]}
36. Rg7+ {[%clk 0:00:05.3]} 36... Kh8 {[%clk 0:00:01.4]} 37. Kxg2 {[%clk
0:00:05.9]} 37... Ne1+ {[%clk 0:00:01.6]} 38. Kf2 {[%clk 0:00:06.3]} 38... Nxf3
{[%clk 0:00:02.5]} 39. Rf7 {[%clk 0:00:06.6]} 39... Kg8 {[%clk 0:00:02.8]} 40.
Rg7+ {[%clk 0:00:06.4]} 40... Kh8 {[%clk 0:00:03.3]} 41. Rg6 {[%clk 0:00:06.4]}
41... e5 {[%clk 0:00:03.6]} 42. Rf6 {[%clk 0:00:05.9]} 42... Kh7 {[%clk
0:00:04]} 43. Bc1 {[%clk 0:00:05]} 43... e4 {[%clk 0:00:04.4]} 44. Rh6+ {[%clk
0:00:05.2]} 44... Kg7 {[%clk 0:00:04.1]} 45. Bf4 {[%clk 0:00:06.1]} 45... e3+
{[%clk 0:00:04.4]} 46. Ke2 {[%clk 0:00:06.7]} 46... d3+ {[%clk 0:00:04]} 47.
Kxd3 {[%clk 0:00:07]} 47... e2 {[%clk 0:00:04.6]} 48. Re6 {[%clk 0:00:07]} 48...
Rxe6 {[%clk 0:00:04.3]} 49. Bd2 {[%clk 0:00:07.2]} 49... Nxd2 {[%clk 0:00:04.2]}
50. Kxd2 {[%clk 0:00:07.5]} 50... e1=Q+ {[%clk 0:00:04.6]} 0-1